bitfinex/quotes_SOLUSD_20240708
["timestamp","ask_amount","ask_price","bid_price","bid_amount"]
[1720462618709,22.9001,137.15,137.1,18.234]
[1720462619312,22.9001,137.15,137.09,7.4642]
[1720462619699,22.9001,137.15,137.08,25.5324]
[1720462620312,22.9001,137.15,137.09,7.2943]
[1720462620695,7.61850253,137.17,137.11,0.17]
[1720462620911,7.70808759,137.19,137.11,0.17]
[1720462620912,16.66961962,137.19,137.12,7.2925]
[1720462621119,16.5219,137.19,137.12,7.2925]
[1720462622912,16.5219,137.19,137.11,0.17]
[1720462623113,41.35889927,137.22,137.16,0.17]
[1720462623114,7.62254043,137.22,137.16,0.17]
[1720462623415,51.43217831,137.42,137.2,0.17]
[1720462623416,15.9481,137.26,137.2,0.17]
[1720462623615,7.62606738,137.27,137.24,7.286]
[1720462623818,6.4584,137.28,137.23,25.5037]
[1720462624020,6.4584,137.28,137.23,18.217]
[1720462624329,6.4584,137.28,137.23,7.2869]
[1720462625037,6.4584,137.28,137.22,7.2874]
[1720462625206,6.4584,137.28,137.2,0.17]
[1720462625524,6.4584,137.28,137.22,0.17]
[1720462625905,15.9481,137.29,137.26,7.2854]
[1720462626099,15.9481,137.29,137.25,7.2858]
[1720462626608,15.9481,137.29,137.22,100.17]
[1720462626807,15.9481,137.29,137.24,0.17]
[1720462627004,15.9481,137.29,137.25,7.2857]
[1720462627330,15.2602,137.33,137.27,7.2847]
[1720462627644,15.2602,137.33,137.28,7.2843]
[1720462628619,15.2602,137.33,137.22,6.5813]
[1720462628620,6.6155,137.28,137.12,100.0]
[1720462628829,15.8676,137.23,137.13,18.2301]
[1720462629129,15.8676,137.23,137.1,121.4154]
[1720462629130,4.54306633,137.22,137.12,7.2923]
[1720462629311,7.2884,137.21,137.12,7.2923]
[1720462629626,6.1876,137.2,137.12,7.2923]
[1720462630744,6.1876,137.2,137.1,18.2338]
[1720462631032,20.0,137.19,137.1,18.2338]
[1720462631401,20.0,137.19,137.12,7.2924]
[1720462632229,20.0,137.19,137.11,7.2932]
[1720462632433,0.34,137.18,137.07,18.2378]
[1720462633206,25.80327793,137.18,137.07,18.2378]
[1720462633530,20.0,137.17,137.08,7.2948]
[1720462633731,0.17,137.16,137.08,7.2948]
[1720462634261,16.4648,137.16,137.07,18.2378]
[1720462634418,20.0,137.15,137.08,7.2949]
[1720462634748,20.0,137.15,137.07,18.2378]
[1720462634932,20.0,137.15,137.04,258.4139]
[1720462634933,22.28673454,137.2,137.13,7.2918]
[1720462635119,20.0,137.19,137.15,7.2912]
[1720462635320,20.0,137.19,137.15,7.2911]
[1720462635520,22.1424,137.2,137.16,7.2906]
[1720462635741,6.0176,137.2,137.16,7.2906]
[1720462635959,0.14433454,137.23,137.17,18.2244]
[1720462636129,0.14433454,137.23,137.18,7.2893]
[1720462636474,0.14433454,137.23,137.15,7.2911]
[1720462636633,0.14433454,137.23,137.14,18.2287]
[1720462636839,7.2882,137.21,137.12,7.2928]
[1720462637151,7.77470083,137.22,137.11,18.2325]
[1720462637328,0.14433454,137.2,137.11,18.2325]
[1720462637521,7.43323454,137.2,137.11,25.5258]
[1720462637729,20.17,137.19,137.11,25.5258]
[1720462638554,20.17,137.19,137.12,7.2925]
[1720462638849,18.22341314,137.22,137.14,7.2916]
[1720462639043,0.34,137.21,137.14,7.2916]
[1720462640159,0.34,137.21,137.16,7.2906]
[1720462640160,20.17,137.21,137.16,7.2906]
[1720462640360,0.17,137.21,137.16,7.2906]
[1720462640536,0.17,137.21,137.12,7.2925]
[1720462640537,27.6285,137.21,137.12,7.2925]
[1720462640723,20.48433454,137.21,137.13,7.2919]
[1720462641248,20.48433454,137.21,137.14,7.2916]
[1720462641633,20.31433454,137.21,137.16,7.2905]
[1720462642034,0.31433454,137.21,137.16,7.2905]
[1720462642233,0.14433454,137.21,137.17,18.2254]
[1720462642524,0.17,137.22,137.17,25.5154]
[1720462642744,0.17,137.23,137.16,7.2905]
[1720462642934,0.17,137.23,137.15,7.2911]
[1720462643326,0.31433454,137.23,137.15,7.2911]
[1720462643527,20.31433454,137.23,137.15,7.2911]
[1720462643756,20.14433454,137.23,137.16,18.2265]
[1720462643954,0.14433454,137.23,137.19,7.2891]
[1720462644256,22.7885,137.24,137.19,7.289]
[1720462644834,22.7885,137.24,137.2,7.2885]
[1720462645263,20.0,137.23,137.19,7.2889]
[1720462645631,20.0,137.23,137.18,25.5134]
[1720462646934,0.17,137.22,137.15,25.518]
[1720462647135,0.17,137.22,137.15,18.2272]
[1720462647669,7.6276,137.22,137.13,7.2922]
[1720462647841,7.6276,137.22,137.11,7.2933]
[1720462647842,7.4587,137.2,137.11,7.2933]
[1720462648033,15.033,137.19,137.11,7.2933]
[1720462648239,20.34,137.18,137.11,7.2933]
[1720462648543,20.17,137.18,137.11,7.2933]
[1720462649352,20.17,137.18,137.09,18.2353]
[1720462649353,6.6292,137.17,137.1,7.2937]
[1720462649554,20.17,137.16,137.1,7.2937]
[1720462650059,20.17,137.16,137.11,7.2934]
[1720462650263,20.17,137.16,137.12,7.2925]
[1720462650264,20.0,137.16,137.12,7.2925]
[1720462650460,20.0,137.16,137.08,36.4738]
[1720462650461,20.0,137.16,137.08,18.2363]
[1720462650661,0.17,137.15,137.06,100.0]
[1720462650862,0.17,137.15,137.08,7.2947]
[1720462651051,0.17,137.15,137.07,25.5333]
[1720462651546,0.17,137.15,137.08,7.2949]
[1720462652252,0.17,137.15,137.09,7.2944]
[1720462652462,20.0,137.16,137.1,7.2938]
[1720462652669,20.0,137.16,137.11,7.2933]
[1720462653164,20.0,137.16,137.09,18.2358]
[1720462653347,15.033,137.19,137.12,0.17]
[1720462653550,15.033,137.19,137.15,7.2909]
[1720462653784,5.7299645,137.23,137.18,7.2893]
[1720462654003,26.91634685,137.24,137.13,100.0]
[1720462654004,26.91634685,137.24,137.17,18.2245]
[1720462654282,34.78439188,137.24,137.14,18.2293]
[1720462654495,7.2876,137.22,137.13,7.2922]
[1720462654846,7.2881,137.21,137.12,7.4625]
[1720462655080,7.2877,137.22,137.13,7.2922]
[1720462655287,20.0,137.21,137.11,25.5252]
[1720462655459,22.736847,137.22,137.11,18.2323]
[1720462655666,7.4586,137.2,137.12,7.2924]
[1720462655965,27.2894,137.19,137.11,18.2323]
[1720462656173,15.5804,137.17,137.09,7.2943]
[1720462656474,20.17,137.16,137.09,7.2943]
[1720462656679,20.17,137.16,137.1,7.2939]
[1720462656986,20.17,137.16,137.09,7.2942]
[1720462658762,20.17,137.16,137.1,7.2939]
[1720462659393,20.17,137.16,137.1,18.2343]
[1720462659553,20.0,137.16,137.12,7.2927]
[1720462659894,20.0,137.16,137.12,25.5248]
[1720462660055,20.0,137.16,137.12,18.2321]
[1720462660385,20.0,137.16,137.13,7.2922]
[1720462660760,20.0,137.16,137.11,7.2931]
[1720462661161,20.0,137.16,137.1,25.5287]
[1720462661586,20.0,137.16,137.1,18.2348]
[1720462661760,20.0,137.16,137.09,7.2942]
[1720462661963,20.0,137.16,137.1,7.2939]
[1720462662484,0.17,137.15,137.1,7.2939]
[1720462663566,0.17,137.15,137.09,18.2359]
[1720462663785,20.0,137.16,137.11,7.2934]
[1720462664100,20.0,137.16,137.11,18.2333]
[1720462664380,15.5804,137.17,137.14,7.2914]
[1720462664594,15.5804,137.17,137.12,18.2309]
[1720462664964,15.5804,137.17,137.12,25.5236]
[1720462666586,15.5804,137.17,137.13,7.2922]
[1720462666765,15.5804,137.17,137.13,18.2296]
[1720462666970,15.5804,137.17,137.1,136.4684]
[1720462666971,23.23293337,137.2,137.16,7.2904]
[1720462667200,15.6012,137.2,137.16,7.2904]
[1720462667704,15.6012,137.2,137.15,25.519]
[1720462669697,15.6012,137.2,137.17,7.2901]
[1720462669998,15.6012,137.2,137.16,7.2905]
[1720462670294,15.6012,137.2,137.14,7.2913]
[1720462670493,15.6012,137.2,137.15,7.2912]
[1720462671005,15.6012,137.2,137.1,18.2337]
[1720462671006,7.2892,137.19,137.1,18.2337]
[1720462671162,0.17,137.18,137.1,18.2337]
[1720462671367,20.17,137.18,137.1,25.5273]
[1720462671772,20.17,137.18,137.11,7.2932]
[1720462671972,0.17,137.18,137.11,7.2932]
[1720462672503,0.17,137.18,137.11,7.2933]
[1720462672706,0.17,137.17,137.1,25.5274]
[1720462672902,20.17,137.17,137.1,25.5274]
[1720462673197,20.0,137.17,137.11,7.2934]
[1720462673499,20.0,137.17,137.1,25.5274]
[1720462673704,20.17,137.18,137.1,25.5274]
[1720462673907,7.4602,137.17,137.07,54.7136]
[1720462674078,20.17,137.16,137.07,54.7136]
[1720462674497,20.17,137.16,137.09,7.2944]
[1720462674705,42.9557,137.15,137.08,7.2947]
[1720462674873,22.9557,137.15,137.08,7.2947]
[1720462675080,20.17,137.14,137.08,7.2947]
[1720462675274,20.17,137.14,137.05,100.0]
[1720462675693,7.2926,137.13,137.04,7.2968]
[1720462675879,20.17,137.12,137.04,7.2968]
[1720462676080,27.4628,137.12,137.04,7.2968]
[1720462676309,20.0,137.11,137.04,7.2968]
[1720462676598,20.0,137.11,137.03,25.5406]
[1720462676795,20.0,137.11,137.04,7.297]
[1720462676979,20.17,137.12,137.05,7.2964]
[1720462677174,20.0,137.11,137.05,25.5378]
[1720462677978,0.17,137.12,137.05,25.5378]
[1720462678180,0.17,137.12,137.06,7.2959]
[1720462678385,0.17,137.12,137.05,18.2414]
[1720462678709,0.17,137.12,137.06,7.2957]
[1720462679311,0.17,137.12,137.07,7.2954]
[1720462679810,0.17,137.12,137.06,7.296]
[1720462681184,0.17,137.12,137.05,25.5378]
[1720462682409,33.39474048,137.13,137.05,25.5378]
[1720462682410,33.39474048,137.13,137.07,18.2381]
[1720462682608,27.63565001,137.13,137.08,7.2949]
[1720462682792,20.0,137.13,137.08,7.2949]
[1720462683610,0.17,137.12,137.06,7.2956]
[1720462685314,0.17,137.12,137.07,7.2954]
[1720462686091,0.17,137.12,137.06,25.5358]
[1720462686296,0.17,137.12,137.04,7.2968]
[1720462687200,0.17,137.12,137.05,7.2964]
[1720462688714,0.17,137.12,137.05,25.5377]
[1720462688914,0.17,137.12,137.06,7.2959]
[1720462689216,20.0,137.13,137.07,18.2388]
[1720462689394,7.86804503,137.14,137.1,7.2935]
[1720462689599,22.9557,137.15,137.1,7.2935]
[1720462689912,22.9557,137.15,137.1,7.2936]
[1720462690305,22.9557,137.15,137.11,7.2932]
[1720462690705,22.9557,137.15,137.11,25.5266]
[1720462691219,22.9557,137.15,137.11,18.2334]
[1720462691717,22.9557,137.15,137.08,18.2365]
[1720462692099,22.9557,137.15,137.08,25.5312]
[1720462692404,0.17,137.14,137.08,25.5312]
[1720462692791,0.17,137.14,137.09,7.2943]
[1720462692987,22.9557,137.15,137.1,7.2934]
[1720462693219,22.9557,137.15,137.11,7.2933]
[1720462693993,22.9557,137.15,137.06,18.2401]
[1720462694305,22.9557,137.15,137.06,25.5361]
[1720462694306,20.17,137.14,137.06,25.5361]
[1720462694510,0.17,137.13,137.05,7.2964]
[1720462694822,7.4623,137.13,137.05,7.2964]
[1720462695021,20.17,137.12,137.05,7.2964]
[1720462695203,20.0,137.11,137.06,7.296]
[1720462695408,20.17,137.14,137.08,7.2947]
[1720462695605,20.17,137.14,137.07,7.2953]
[1720462696204,25.90813372,137.14,137.07,7.2953]
[1720462696413,20.17,137.14,137.07,7.2953]
[1720462698440,20.17,137.14,137.06,25.5355]
[1720462699507,27.4618,137.14,137.06,25.5355]
[1720462699827,27.4618,137.14,137.05,7.2965]
[1720462699828,0.17,137.13,137.05,7.2965]
[1720462700227,15.09773288,137.13,137.05,7.2965]
[1720462700536,0.17,137.12,137.04,18.2415]
[1720462700702,20.17,137.12,137.04,18.2415]
[1720462701310,20.17,137.12,137.01,279.7309]
[1720462701311,20.17,137.12,137.06,25.5357]
[1720462701634,20.17,137.12,137.06,18.2401]
[1720462702510,20.17,137.12,137.06,25.5361]
[1720462702911,20.17,137.12,137.03,18.2429]
[1720462703128,27.4632,137.12,137.04,7.2971]
[1720462703429,20.17,137.12,137.05,7.2964]
[1720462703625,20.17,137.12,137.06,7.296]
[1720462703828,20.17,137.12,137.05,100.0]
[1720462703829,20.0,137.12,137.05,100.0]
[1720462704134,22.9557,137.15,137.08,0.17]
[1720462704538,22.9557,137.15,137.11,18.2332]
[1720462704911,16.4638,137.15,137.11,25.5263]
[1720462706612,16.4638,137.15,137.09,107.294]
[1720462706809,16.4638,137.15,137.09,7.294]
[1720462707013,16.4638,137.15,137.08,25.531]
[1720462707231,0.17,137.14,137.08,18.2362]
[1720462707417,0.17,137.14,137.08,25.5311]
[1720462707610,16.4638,137.15,137.08,18.2362]
[1720462708022,16.4638,137.15,137.09,0.17]
[1720462708424,16.4638,137.15,137.1,7.2936]
[1720462709811,16.4638,137.15,137.08,7.4649]
[1720462710018,16.4638,137.15,137.09,7.464]
[1720462710319,16.4638,137.15,137.1,7.2937]
[1720462710527,16.4638,137.15,137.09,7.4643]
[1720462711023,16.4638,137.15,137.08,18.2373]
[1720462711225,16.4638,137.15,137.09,7.4641]
[1720462711631,16.4638,137.15,137.1,7.2939]
[1720462712013,8.02619985,137.17,137.1,100.0]
[1720462712234,30.51214779,137.19,137.16,7.2907]
[1720462712418,10.59304685,137.21,137.16,7.2907]
[1720462712617,16.055,137.22,137.16,7.2907]
[1720462713318,16.055,137.22,137.14,18.229]
[1720462713319,16.055,137.22,137.15,7.2911]
[1720462713518,20.0,137.21,137.15,7.2911]
[1720462714234,20.0,137.21,137.11,18.2324]
[1720462714432,0.17,137.2,137.12,7.4625]
[1720462714741,20.0,137.21,137.14,7.2916]
[1720462715252,20.0,137.21,137.13,25.5224]
[1720462717243,20.0,137.21,137.13,18.2303]
[1720462718041,20.0,137.21,137.14,7.2916]
[1720462718517,20.0,137.21,137.13,25.5224]
[1720462718720,20.0,137.21,137.14,7.2917]
[1720462719832,20.0,137.21,137.14,7.2916]
[1720462720932,20.0,137.21,137.13,25.5222]
[1720462721243,0.17,137.2,137.14,7.2917]
[1720462721847,20.0,137.21,137.14,7.2917]
[1720462724043,20.0,137.21,137.17,7.2897]
[1720462724241,20.0,137.21,137.17,18.2254]
[1720462725139,7.63028339,137.23,137.19,7.2888]
[1720462725327,21.2237,137.26,137.19,7.2888]
[1720462726245,27.13165345,137.26,137.18,7.2894]
[1720462726542,20.17,137.25,137.17,25.5154]
[1720462729252,0.17,137.24,137.14,18.2287]
[1720462729450,0.17,137.22,137.14,18.2287]
[1720462729634,0.17,137.23,137.15,7.2909]
[1720462729847,20.17,137.23,137.15,7.2909]
[1720462730348,20.17,137.23,137.16,7.2906]
[1720462733060,20.17,137.23,137.15,7.291]
[1720462734633,27.457,137.23,137.14,25.5202]
[1720462734833,0.17,137.22,137.14,25.5202]
[1720462735043,0.17,137.22,137.15,7.2912]
[1720462735276,20.17,137.23,137.17,7.2901]
[1720462735435,37.02820566,137.26,137.18,7.2894]
[1720462735649,62.90370566,137.26,137.17,25.5145]
[1720462735854,14.91504287,137.25,137.17,25.5145]
[1720462736038,7.62894287,137.25,137.17,25.5144]
[1720462736438,7.62894287,137.25,137.17,18.2245]
[1720462736647,20.0,137.24,137.18,7.2894]
[1720462736950,0.17,137.23,137.18,7.2894]
[1720462737459,20.0,137.24,137.18,7.2894]
[1720462737656,7.62894287,137.25,137.21,18.2199]
[1720462738027,21.2237,137.26,137.21,18.2199]
[1720462738028,15.2075,137.26,137.23,7.2867]
[1720462738841,6.4358,137.29,137.23,7.2867]
[1720462739234,0.17,137.28,137.21,18.2199]
[1720462739451,0.17,137.28,137.21,25.5076]
[1720462739636,14.30384503,137.29,137.22,7.2871]
[1720462739839,16.2249,137.3,137.25,18.2138]
[1720462740056,9.31877443,137.32,137.22,100.17]
[1720462740057,6.4415,137.32,137.24,100.17]
[1720462740242,16.2249,137.34,137.27,18.2117]
[1720462740559,16.2249,137.34,137.29,7.2836]
[1720462740760,16.2249,137.34,137.28,7.2842]
[1720462741134,16.2249,137.34,137.27,18.2117]
[1720462741349,16.2249,137.34,137.29,7.2835]
[1720462741642,16.2249,137.34,137.28,7.2841]
[1720462742257,16.2249,137.34,137.31,7.2827]
[1720462742642,16.2249,137.34,137.3,7.2831]
[1720462742844,16.2249,137.34,137.29,25.493]
[1720462743768,16.2249,137.34,137.28,7.2842]
[1720462744144,16.2249,137.34,137.26,18.2129]
[1720462744463,20.17,137.33,137.22,158.1886]
[1720462744760,20.17,137.33,137.28,7.2843]
[1720462744944,20.17,137.33,137.27,25.4968]
[1720462745145,20.17,137.33,137.27,18.212]
[1720462745345,20.17,137.33,137.26,7.285]
[1720462745743,20.17,137.33,137.24,18.2154]
[1720462745744,20.17,137.33,137.25,7.2857]
[1720462746060,0.17,137.3,137.23,7.287]
[1720462746264,0.17,137.3,137.21,18.2192]
[1720462746265,0.34,137.3,137.22,7.2874]
[1720462746470,20.34,137.3,137.22,7.2874]
[1720462747369,20.34,137.3,137.23,7.2869]
[1720462747573,20.17,137.3,137.23,18.2171]
[1720462748069,20.17,137.3,137.25,18.2142]
[1720462748374,6.4415,137.31,137.27,7.2848]
[1720462748758,16.2249,137.34,137.31,7.2824]
[1720462748965,22.6664,137.38,137.31,18.2065]
[1720462749178,22.6664,137.38,137.33,7.2816]
[1720462750147,22.6664,137.38,137.34,0.8219275]
[1720462750464,6.4415,137.42,137.37,7.2793]
[1720462750666,6.4415,137.42,137.36,7.28]
[1720462751848,0.17,137.41,137.36,7.28]
[1720462752048,6.4415,137.42,137.36,7.28]
[1720462752570,6.4415,137.42,137.35,18.2013]
[1720462752778,20.0,137.41,137.35,18.2013]
[1720462753472,20.0,137.41,137.33,7.2813]
[1720462753473,0.17,137.4,137.33,7.2813]
[1720462753653,0.17,137.4,137.34,7.2811]
[1720462754270,0.17,137.4,137.33,7.2815]
[1720462754591,0.17,137.4,137.32,18.2051]
[1720462755057,7.2787,137.39,137.3,7.2831]
[1720462755255,20.34,137.38,137.29,18.2085]
[1720462755466,27.6194,137.38,137.29,25.4922]
[1720462755880,27.6194,137.38,137.27,7.2845]
[1720462755881,0.17,137.34,137.27,7.2845]
[1720462756048,0.17,137.34,137.26,18.2129]
[1720462756249,0.34,137.34,137.28,7.2843]
[1720462756470,0.17,137.34,137.31,7.2825]
[1720462756666,0.17,137.34,137.3,7.2829]
[1720462757285,0.17,137.34,137.29,18.2084]
[1720462757577,6.2703,137.35,137.31,18.2066]
[1720462757753,6.2703,137.35,137.33,7.2816]
[1720462758581,21.83187379,137.37,137.32,7.2821]
[1720462758888,20.0,137.36,137.32,7.2821]
[1720462759980,22.00187379,137.37,137.33,7.2815]
[1720462760193,6.4028,137.39,137.33,7.2815]
[1720462760362,20.0,137.38,137.33,7.2815]
[1720462760678,20.0,137.38,137.3,7.2831]
[1720462760901,20.0,137.38,137.29,7.2836]
[1720462760902,27.2794,137.38,137.29,7.2836]
[1720462761205,20.0,137.38,137.31,7.2823]
[1720462761553,0.17,137.37,137.31,7.2823]
[1720462762388,0.17,137.37,137.33,7.2812]
[1720462762687,0.17,137.37,137.32,25.4868]
[1720462762986,0.34,137.37,137.3,7.2831]
[1720462764463,0.34,137.37,137.31,7.2826]
[1720462764862,0.17,137.37,137.32,7.2822]
[1720462765865,0.17,137.37,137.31,25.4892]
[1720462766686,0.17,137.37,137.32,7.2822]
[1720462767084,0.17,137.37,137.33,7.2816]
[1720462767471,0.17,137.37,137.32,7.2821]
[1720462768985,20.0,137.38,137.33,7.2815]
[1720462769281,20.0,137.38,137.32,7.2821]
[1720462769488,20.0,137.38,137.33,7.2815]
[1720462770077,20.0,137.38,137.33,25.4855]
[1720462770959,6.4028,137.39,137.34,7.2809]
[1720462771183,23.99049613,137.41,137.35,18.2013]
[1720462771184,16.3703,137.41,137.35,18.2013]
[1720462771496,16.46338878,137.43,137.35,0.17]
[1720462771694,16.0854,137.46,137.42,18.1924]
[1720462771996,6.546,137.47,137.42,25.4689]
[1720462772166,6.546,137.47,137.38,200.0]
[1720462772167,6.546,137.47,137.41,7.2772]
[1720462772362,6.546,137.47,137.43,7.2763]
[1720462772582,6.546,137.47,137.42,7.2768]
[1720462773889,6.546,137.47,137.41,18.1934]
[1720462774087,7.2749,137.46,137.38,18.1967]
[1720462774270,6.546,137.47,137.38,18.1967]
[1720462774478,0.17,137.46,137.38,18.1967]
[1720462774801,0.34,137.46,137.36,7.2796]
[1720462774973,0.17,137.44,137.36,7.2796]
[1720462775171,20.34,137.44,137.37,7.2795]
[1720462775492,20.17,137.44,137.38,7.2789]
[1720462775695,20.0,137.43,137.38,7.2789]
[1720462775899,0.17,137.44,137.38,7.2789]
[1720462776080,0.34,137.45,137.37,25.4781]
[1720462776501,0.17,137.43,137.35,7.2801]
[1720462776798,27.6164,137.43,137.34,25.4831]
[1720462776977,20.34,137.43,137.35,7.2805]
[1720462777184,20.34,137.43,137.36,7.28]
[1720462777499,20.17,137.43,137.37,7.2795]
[1720462777821,20.0,137.43,137.38,7.279]
[1720462777991,20.0,137.43,137.38,18.197]
[1720462778299,15.6491,137.44,137.4,25.4726]
[1720462778601,15.6491,137.44,137.4,18.1948]
[1720462778797,15.6491,137.44,137.38,7.2789]
[1720462779473,0.17,137.43,137.38,7.2789]
[1720462780173,15.6491,137.44,137.4,7.278]
[1720462781679,15.6491,137.44,137.41,7.2773]
[1720462781890,13.67175148,137.45,137.41,7.2773]
[1720462782096,6.546,137.47,137.42,7.2768]
[1720462782311,6.546,137.47,137.41,25.4706]
[1720462783188,20.0,137.46,137.41,25.4706]
[1720462783390,20.0,137.46,137.41,18.1933]
[1720462783600,20.0,137.46,137.4,7.2779]
[1720462783904,20.0,137.46,137.38,25.4756]
[1720462784129,0.17,137.45,137.37,7.2794]
[1720462784495,0.17,137.45,137.38,7.279]
[1720462784720,0.17,137.45,137.39,7.2785]
[1720462784922,0.17,137.45,137.4,7.2778]
[1720462785124,20.0,137.46,137.4,7.2778]
[1720462786214,20.0,137.46,137.41,7.2769]
[1720462786616,12.51854525,137.47,137.41,25.4704]
[1720462786825,6.546,137.47,137.41,18.1935]
[1720462787324,6.546,137.47,137.41,25.4705]
[1720462787535,6.546,137.47,137.39,0.17]
[1720462787848,6.546,137.47,137.38,0.17]
[1720462788005,6.546,137.47,137.38,20.17]
[1720462788513,6.546,137.47,137.41,7.2774]
[1720462788917,6.546,137.47,137.42,7.2768]
[1720462789130,16.1185,137.48,137.43,0.17]
[1720462789427,6.1885,137.5,137.46,7.2748]
[1720462789619,6.1885,137.5,137.45,7.2752]
[1720462789809,6.1885,137.5,137.44,25.4653]
[1720462790002,5.82623665,137.51,137.44,25.4653]
[1720462790327,15.08535856,137.52,137.47,7.2742]
[1720462790730,20.0,137.51,137.46,25.4612]
[1720462791229,20.0,137.51,137.48,25.4578]
[1720462791524,20.0,137.51,137.48,18.1843]
[1720462791749,0.04325856,137.52,137.48,25.458]
[1720462792922,0.04325856,137.52,137.45,18.1872]
[1720462793233,0.04325856,137.52,137.46,7.2743]
[1720462793838,0.21325856,137.52,137.46,7.2743]
[1720462795134,0.21325856,137.52,137.45,25.4625]
[1720462795322,0.21325856,137.52,137.42,18.1912]
[1720462795527,0.21325856,137.52,137.39,100.0]
[1720462795528,15.7173,137.5,137.39,18.1954]
[1720462795734,20.17,137.49,137.44,7.2755]
[1720462796340,20.17,137.49,137.43,7.2763]
[1720462797128,20.17,137.49,137.42,18.1911]
[1720462797129,27.4433,137.49,137.41,7.2771]
[1720462797418,20.17,137.49,137.41,7.2771]
[1720462797843,20.17,137.49,137.42,7.2768]
[1720462798021,20.17,137.49,137.44,7.2758]
[1720462798218,20.17,137.49,137.43,25.4671]
[1720462798941,20.17,137.49,137.4,18.1939]
[1720462799137,20.17,137.49,137.41,7.2774]
[1720462799337,20.17,137.49,137.43,7.2762]
[1720462799551,20.17,137.49,137.42,25.4686]
[1720462800624,15.7173,137.5,137.46,7.2748]
[1720462800829,15.7173,137.5,137.44,25.4649]
[1720462801362,15.7173,137.5,137.42,18.1923]
[1720462801637,21.46923574,137.5,137.42,18.1923]
[1720462801842,0.17,137.49,137.4,0.17]
[1720462802020,27.4435,137.49,137.41,7.2774]
[1720462802221,6.6605,137.48,137.41,7.2774]
[1720462802542,20.17,137.47,137.4,7.2779]
[1720462803847,20.17,137.47,137.39,25.4737]
[1720462804047,20.17,137.47,137.36,18.1993]
[1720462804048,0.17,137.45,137.36,18.1993]
[1720462804356,20.34,137.45,137.37,7.2792]
[1720462804644,20.34,137.45,137.38,7.279]
[1720462805455,20.34,137.45,137.36,18.1993]
[1720462805456,18.52,137.41,137.33,18.2035]
[1720462805648,20.17,137.4,137.33,18.2035]
[1720462805851,20.17,137.4,137.32,7.282]
[1720462806063,0.17,137.39,137.32,7.282]
[1720462806721,7.2791,137.38,137.29,7.2837]
[1720462806924,0.17,137.39,137.26,164.427]
[1720462806925,26.7027,137.37,137.26,164.427]
[1720462807127,6.5327,137.37,137.3,7.2828]
[1720462807318,20.17,137.36,137.3,7.2828]
[1720462807729,20.0,137.36,137.31,18.2064]
[1720462807941,20.0,137.36,137.33,7.2815]
[1720462808141,20.0,137.36,137.32,7.282]
[1720462808326,20.0,137.36,137.31,25.489]
[1720462809029,20.0,137.36,137.3,7.2832]
[1720462809432,16.3968,137.35,137.29,7.2837]
[1720462810862,16.3968,137.35,137.3,7.2832]